[Event "Chessity Nationale Pupillendag 2018 - Groep G"]
[Site "Meppel, Netherlands"]
[Date "2018.06.23"]
[Round "2.3"]
[White "Koster, Benjamin"]
[Black "Gelten, Evan"]
[Result "1-0"]
[TimeControl "15 min + 10 sec"]
[WhiteElo "417"]
[BlackElo "757"]

1. e4 {[%clk 00:15:19]} {[%emt 00:00:47]} e5 {[%clk 00:15:19]} {[%emt
00:00:01]} 2. Nf3 {[%clk 00:15:27]} {[%emt 00:00:03]} Nc6 {[%clk 00:15:27]}
{[%emt 00:00:02]} 3. Bb5 {[%clk 00:15:32]} {[%emt 00:00:03]} d6 {[%clk
00:15:32]} {[%emt 00:00:06]} 4. Bxc6+ {[%emt 00:00:04]} bxc6 5. Nc3 {[%clk
00:15:30]} {[%emt 00:00:06]} Bg4 {[%clk 00:15:40]} {[%emt 00:00:03]} 6. Qe2
{[%clk 00:15:30]} {[%emt 00:00:09]} Nf6 {[%clk 00:15:49]} {[%emt 00:00:02]} 7.
h3 {[%clk 00:15:29]} {[%emt 00:00:10]} Bh5 {[%clk 00:15:57]} {[%emt 00:00:02]}
8. g4 {[%clk 00:15:39]} {[%emt 00:00:01]} Bg6 {[%clk 00:16:06]} {[%emt
00:00:02]} 9. g5 {[%clk 00:15:44]} {[%emt 00:00:04]} Nd7 {[%clk 00:16:11]}
{[%emt 00:00:05]} 10. O-O {[%clk 00:15:38]} {[%emt 00:00:16]} Nc5 {[%clk
00:16:16]} {[%emt 00:00:05]} 11. b4 {[%clk 00:15:27]} {[%emt 00:00:21]} Nb7
{[%clk 00:16:20]} {[%emt 00:00:07]} 12. b5 {[%clk 00:15:32]} {[%emt 00:00:05]}
cxb5 {[%clk 00:16:28]} 13. Qxb5+ {[%clk 00:15:40]} {[%emt 00:00:02]} Qd7 {[%clk
00:16:30]} {[%emt 00:00:08]} 14. Qxb7 {[%clk 00:15:47]} {[%emt 00:00:03]} Rc8
{[%clk 00:16:39]} {[%emt 00:00:01]} 15. Qb4 {[%clk 00:15:41]} {[%emt 00:00:15]}
Qxh3 {[%clk 00:16:45]} {[%emt 00:00:05]} 16. Qa4+ {[%emt 00:00:13]} Ke7 {[%emt
00:00:03]} 17. Nd5+ {[%emt 00:00:03]} Ke6 {[%emt 00:00:02]} 18. Qc4 {[%clk
00:14:49]} {[%emt 00:00:40]} Kd7 {[%clk 00:16:52]} {[%emt 00:00:04]} 19. Rb1
{[%clk 00:14:38]} {[%emt 00:00:20]} Bh5 {[%clk 00:17:00]} {[%emt 00:00:02]} 20.
Rb8 {[%clk 00:14:30]} {[%emt 00:00:18]} Bxf3 {[%clk 00:17:05]} {[%emt
00:00:06]} 21. Qb5+ {[%clk 00:14:22]} {[%emt 00:00:16]} c6 {[%clk 00:17:14]}
{[%emt 00:00:03]} 22. Qb7+ {[%clk 00:14:26]} {[%emt 00:00:01]} Ke6 {[%clk
00:17:21]} {[%emt 00:00:08]} 23. Qxc8# {[%clk 00:14:24]} {[%emt 00:00:11]} 1-0

[Event "Chessity Nationale Pupillendag 2018 - Groep G"]
[Site "Meppel, Netherlands"]
[Date "2018.06.23"]
[Round "2.4"]
[White "Heukelom, Aurelia"]
[Black "Groeneveld, Alexander"]
[Result "1-0"]
[TimeControl "15 min + 10 sec"]
[WhiteElo "703"]
[BlackElo "399"]

1. d4 {[%clk 00:15:19]} d5 {[%clk 00:15:19]} 2. c4 {[%clk 00:15:27]} {[%emt
00:10:29]} Nf6 {[%clk 00:15:24]} 3. cxd5 {[%clk 00:15:33]} {[%emt 00:00:09]}
Nxd5 {[%clk 00:15:32]} 4. e4 {[%clk 00:15:41]} {[%emt 00:00:03]} Nb4 {[%clk
00:15:38]} 5. Bd2 {[%clk 00:15:47]} {[%emt 00:00:08]} N4c6 {[%clk 00:15:42]} 6.
d5 {[%clk 00:15:56]} {[%emt 00:00:07]} Nd4 {[%clk 00:15:50]} 7. Be3 {[%clk
00:15:50]} {[%emt 00:00:19]} e5 {[%clk 00:15:56]} {[%emt 00:00:04]} 8. Bxd4
{[%clk 00:15:54]} {[%emt 00:00:06]} exd4 {[%clk 00:16:04]} {[%emt 00:00:01]} 9.
Bb5+ {[%clk 00:16:00]} {[%emt 00:00:04]} c6 {[%clk 00:16:10]} {[%emt 00:00:05]}
10. dxc6 {[%clk 00:16:08]} {[%emt 00:00:01]} Nxc6 {[%clk 00:16:15]} {[%emt
00:00:05]} 11. Bxc6+ {[%clk 00:16:17]} {[%emt 00:00:03]} bxc6 {[%emt 00:00:06]}
12. Nf3 {[%clk 00:16:18]} {[%emt 00:00:03]} Bb4+ {[%emt 00:00:06]} 13. Nbd2
{[%clk 00:16:24]} {[%emt 00:00:02]} d3 {[%emt 00:00:15]} 14. O-O {[%clk
00:16:27]} {[%emt 00:00:03]} Bg4 {[%emt 00:00:15]} 15. Qb3 {[%clk 00:16:17]}
{[%emt 00:00:08]} Rb8 {[%emt 00:00:53]} 16. Ne5 {[%emt 00:00:14]} Be2 {[%emt
00:00:07]} 17. Qxf7# {[%emt 00:00:20]} 1-0

[Event "Chessity Nationale Pupillendag 2018 - Groep G"]
[Site "Meppel, Netherlands"]
[Date "2018.06.23"]
[Round "3.1"]
[White "Aubel, Daan"]
[Black "Vijver, Jonathan"]
[Result "1-0"]
[TimeControl "15 min + 10 sec"]
[WhiteElo "833"]
[BlackElo "588"]

1. e4 {[%clk 00:15:19]} e5 {[%clk 00:15:19]} {[%emt 00:00:02]} 2. Nf3 {[%clk
00:15:27]} {[%emt 00:00:02]} Nc6 {[%clk 00:15:27]} {[%emt 00:00:02]} 3. Bb5
{[%clk 00:15:34]} {[%emt 00:00:03]} d6 {[%clk 00:15:34]} {[%emt 00:00:03]} 4.
Bxc6+ {[%clk 00:15:40]} {[%emt 00:00:03]} bxc6 {[%clk 00:15:42]} {[%emt
00:00:02]} 5. d3 {[%clk 00:15:48]} {[%emt 00:00:03]} Nf6 {[%clk 00:15:50]}
{[%emt 00:00:02]} 6. Bg5 {[%clk 00:15:55]} {[%emt 00:00:03]} Be7 {[%clk
00:15:56]} {[%emt 00:00:04]} 7. h3 {[%clk 00:16:02]} {[%emt 00:00:02]} Ba6
{[%clk 00:15:56]} {[%emt 00:00:10]} 8. Nc3 {[%clk 00:16:04]} {[%emt 00:00:07]}
O-O {[%clk 00:16:03]} {[%emt 00:00:03]} 9. O-O {[%clk 00:16:09]} {[%emt
00:00:05]} Rb8 {[%clk 00:16:09]} {[%emt 00:00:04]} 10. Rb1 {[%clk 00:16:14]}
{[%emt 00:00:06]} h6 {[%clk 00:16:01]} {[%emt 00:00:18]} 11. Be3 {[%clk
00:16:19]} {[%emt 00:00:06]} d5 {[%clk 00:15:54]} {[%emt 00:00:16]} 12. Bxa7
{[%clk 00:16:00]} {[%emt 00:00:28]} Rb7 {[%clk 00:15:56]} {[%emt 00:00:08]} 13.
Be3 {[%clk 00:16:03]} {[%emt 00:00:07]} d4 {[%clk 00:16:04]} {[%emt 00:00:02]}
14. Nxe5 {[%clk 00:16:08]} {[%emt 00:00:05]} dxc3 {[%clk 00:16:09]} {[%emt
00:00:06]} 15. Nxc6 {[%clk 00:16:11]} {[%emt 00:00:07]} Qd6 {[%clk 00:16:14]}
{[%emt 00:00:04]} 16. Nxe7+ {[%clk 00:16:16]} {[%emt 00:00:06]} Qxe7 {[%clk
00:16:20]} {[%emt 00:00:03]} 17. bxc3 {[%clk 00:16:22]} {[%emt 00:00:05]} Rxb1
{[%clk 00:16:26]} {[%emt 00:00:03]} 18. Qxb1 {[%clk 00:16:29]} {[%emt
00:00:04]} Rd8 {[%clk 00:16:19]} {[%emt 00:00:15]} 19. Re1 {[%clk 00:16:18]}
{[%emt 00:00:21]} c5 {[%clk 00:15:59]} {[%emt 00:00:32]} 20. Qb6 {[%clk
00:16:16]} {[%emt 00:00:11]} Bc8 {[%clk 00:15:42]} {[%emt 00:00:27]} 21. Bxc5
{[%clk 00:16:18]} {[%emt 00:00:07]} Qb7 {[%clk 00:15:45]} {[%emt 00:00:08]} 22.
Qxd8+ {[%clk 00:16:24]} {[%emt 00:00:04]} Kh7 {[%clk 00:15:52]} {[%emt
00:00:03]} 23. Qb6 {[%clk 00:16:27]} {[%emt 00:00:07]} Qxb6 {[%clk 00:15:52]}
{[%emt 00:00:10]} 24. Bxb6 {[%clk 00:16:35]} {[%emt 00:00:01]} g5 {[%clk
00:15:52]} {[%emt 00:00:11]} 25. Re3 {[%clk 00:16:38]} {[%emt 00:00:06]} g4
{[%clk 00:16:00]} {[%emt 00:00:03]} 26. Bd4 {[%clk 00:16:34]} {[%emt 00:00:14]}
Nh5 {[%clk 00:16:02]} {[%emt 00:00:07]} 27. h4 {[%clk 00:16:10]} {[%emt
00:00:34]} Kg6 {[%clk 00:16:01]} {[%emt 00:00:11]} 28. Kh2 {[%clk 00:16:06]}
{[%emt 00:00:14]} f6 {[%clk 00:16:04]} {[%emt 00:00:07]} 29. f3 {[%clk
00:15:59]} {[%emt 00:00:17]} g3 {[%clk 00:16:13]} {[%emt 00:00:02]} 30. Kg1
{[%clk 00:16:01]} {[%emt 00:00:06]} Nf4 {[%clk 00:16:17]} {[%emt 00:00:07]} 31.
e5 {[%clk 00:15:44]} {[%emt 00:00:27]} fxe5 {[%clk 00:16:24]} {[%emt 00:00:04]}
32. Bxe5 {[%clk 00:15:51]} {[%emt 00:00:03]} Nd5 {[%clk 00:16:18]} {[%emt
00:00:15]} 33. Re4 {[%clk 00:15:37]} {[%emt 00:00:25]} Nxc3 {[%clk 00:16:23]}
{[%emt 00:00:04]} 34. Rc4 {[%clk 00:15:42]} {[%emt 00:00:05]} Ne2+ {[%clk
00:16:30]} {[%emt 00:00:03]} 35. Kf1 {[%clk 00:15:48]} {[%emt 00:00:04]} Be6
{[%clk 00:16:37]} {[%emt 00:00:04]} 36. Kxe2 {[%clk 00:15:52]} {[%emt
00:00:06]} Bxc4 {[%clk 00:16:45]} {[%emt 00:00:02]} 37. dxc4 {[%clk 00:16:00]}
{[%emt 00:00:02]} Kf5 {[%clk 00:16:53]} {[%emt 00:00:02]} 38. Bxg3 {[%clk
03:59:08]} {[%emt 00:00:02]} Ke6 {[%clk 00:17:01]} {[%emt 00:00:02]} 39. a4
{[%clk 00:16:15]} {[%emt 00:00:04]} Kd7 {[%clk 00:17:10]} 40. a5 {[%clk
00:16:23]} {[%emt 00:00:02]} Kc6 {[%clk 00:17:19]} {[%emt 00:00:01]} 41. f4
{[%clk 00:16:28]} {[%emt 00:00:07]} Kc5 {[%clk 00:17:25]} {[%emt 00:00:02]} 42.
f5 {[%clk 00:16:37]} {[%emt 00:00:01]} Kxc4 {[%clk 00:17:34]} 43. f6 {[%clk
00:16:46]} {[%emt 00:00:02]} Kb5 {[%clk 00:17:42]} 44. f7 {[%clk 00:16:54]}
{[%emt 00:00:02]} Kxa5 {[%clk 00:17:51]} 45. f8=Q {[%clk 00:17:02]} {[%emt
00:00:02]} Ka4 {[%clk 00:17:57]} {[%emt 00:00:04]} 46. Be1 {[%clk 00:17:03]}
{[%emt 00:00:08]} Kb5 {[%clk 00:18:05]} {[%emt 00:00:02]} 47. Kd3 {[%clk
00:17:10]} {[%emt 00:00:04]} Kc6 {[%clk 00:18:14]} {[%emt 00:00:01]} 48. Kd4
{[%clk 00:17:13]} {[%emt 00:00:07]} Kd7 {[%clk 00:18:22]} {[%emt 00:00:01]} 49.
Bb4 {[%clk 00:17:18]} {[%emt 00:00:06]} Kc6 {[%clk 00:18:28]} {[%emt 00:00:03]}
50. Qd8 {[%clk 00:17:18]} {[%emt 00:00:10]} Kb7 {[%clk 00:18:36]} {[%emt
00:00:03]} 51. Bc5 {[%clk 00:17:18]} {[%emt 00:00:10]} Ka6 {[%clk 00:18:44]}
{[%emt 00:00:01]} 52. Qb6# 1-0

[Event "Chessity Nationale Pupillendag 2018 - Groep G"]
[Site "Meppel, Netherlands"]
[Date "2018.06.23"]
[Round "3.2"]
[White "Pereira Garza, Cecilia"]
[Black "Verwer, Oscar"]
[Result "0-1"]
[TimeControl "15 min + 10 sec"]
[WhiteElo "616"]
[BlackElo "833"]

1. d4 {[%clk 00:15:17]} {[%emt 00:00:02]} Nf6 {[%clk 00:15:19]} {[%emt
00:00:02]} 2. c4 {[%clk 00:15:17]} {[%emt 00:00:10]} g6 {[%clk 00:15:26]}
{[%emt 00:00:03]} 3. Nc3 {[%clk 00:15:12]} {[%emt 00:00:15]} d5 {[%clk
00:15:33]} {[%emt 00:00:02]} 4. Nf3 {[%clk 00:15:07]} {[%emt 00:00:15]} Bg7
{[%clk 00:15:42]} {[%emt 00:00:02]} 5. cxd5 {[%clk 00:14:43]} {[%emt 00:00:33]}
Nxd5 {[%clk 00:15:49]} {[%emt 00:00:03]} 6. Nxd5 {[%clk 00:14:20]} {[%emt
00:00:33]} Qxd5 {[%clk 00:15:56]} {[%emt 00:00:04]} 7. e4 {[%clk 00:14:18]}
{[%emt 00:00:11]} Qxe4+ {[%clk 00:15:55]} {[%emt 00:00:11]} 8. Qe2 {[%clk
00:14:00]} {[%emt 00:00:28]} Qxe2+ {[%clk 00:14:45]} {[%emt 00:01:22]} 9. Bxe2
{[%clk 00:14:08]} O-O {[%clk 00:14:54]} 10. O-O {[%clk 00:14:14]} {[%emt
00:00:05]} Nc6 {[%clk 00:14:59]} {[%emt 00:00:06]} 11. Be3 {[%clk 00:14:17]}
{[%emt 00:00:07]} Be6 {[%clk 00:15:00]} {[%emt 00:00:09]} 12. Rfd1 {[%clk
00:14:15]} {[%emt 00:00:11]} Rad8 {[%clk 00:15:05]} {[%emt 00:00:06]} 13. b3
{[%clk 00:13:28]} {[%emt 00:00:57]} f5 {[%clk 00:15:06]} {[%emt 00:00:10]} 14.
Bc4 {[%clk 00:13:31]} {[%emt 00:00:06]} Bxc4 {[%clk 00:15:12]} {[%emt
00:00:03]} 15. bxc4 {[%clk 00:13:39]} {[%emt 00:00:02]} f4 {[%clk 00:15:16]}
{[%emt 00:00:07]} 16. d5 {[%clk 00:13:40]} {[%emt 00:00:08]} Bxa1 {[%clk
00:15:15]} {[%emt 00:00:12]} 17. Rxa1 {[%clk 00:13:39]} {[%emt 00:00:11]} fxe3
{[%clk 00:15:24]} 18. dxc6 {[%clk 00:13:44]} {[%emt 00:00:05]} exf2+ {[%clk
00:15:31]} {[%emt 00:00:03]} 19. Kxf2 {[%clk 00:13:52]} {[%emt 00:00:02]} bxc6
{[%clk 00:15:40]} {[%emt 00:00:02]} 20. Re1 {[%clk 00:13:42]} {[%emt 00:00:16]}
g5 {[%clk 00:15:29]} {[%emt 00:00:23]} 21. Kg1 {[%clk 00:13:45]} {[%emt
00:00:06]} h6 {[%clk 00:15:16]} {[%emt 00:00:26]} 22. Rxe7 {[%clk 00:13:42]}
{[%emt 00:00:12]} Rd1+ {[%clk 00:15:11]} {[%emt 00:00:15]} 23. Kf2 {[%clk
00:13:45]} {[%emt 00:00:03]} g4 {[%clk 00:15:17]} {[%emt 00:00:09]} 24. Ke2
{[%clk 00:13:27]} {[%emt 00:00:25]} gxf3+ {[%clk 00:14:55]} {[%emt 00:00:35]}
25. Kxd1 {[%clk 00:13:33]} {[%emt 00:00:04]} f2 {[%clk 00:15:03]} {[%emt
00:00:02]} 26. Re1 {[%clk 00:11:48]} {[%emt 00:01:53]} fxe1=Q+ 27. Kxe1 Kg7
{[%clk 00:15:05]} {[%emt 00:00:05]} 28. Ke2 {[%clk 00:11:56]} {[%emt 00:00:02]}
Rd8 {[%clk 00:15:13]} {[%emt 00:00:02]} 29. Ke3 {[%clk 00:12:02]} {[%emt
00:00:03]} Kf6 {[%clk 00:15:22]} {[%emt 00:00:01]} 30. Kf4 {[%clk 00:12:11]}
{[%emt 00:00:02]} Rd4+ {[%emt 00:00:06]} 31. Kg3 {[%clk 00:12:16]} Kg5 {[%clk
00:15:37]} {[%emt 00:00:03]} 32. h4+ {[%clk 00:12:23]} {[%emt 00:00:03]} Rxh4
{[%clk 00:15:43]} {[%emt 00:00:04]} 33. Kf3 {[%clk 00:12:30]} {[%emt 00:00:02]}
Rxc4 {[%clk 00:15:51]} {[%emt 00:00:03]} 34. a4 {[%clk 00:12:36]} {[%emt
00:00:05]} Rxa4 {[%clk 00:15:59]} 35. Kf2 {[%clk 00:12:43]} {[%emt 00:00:02]}
Kf4 {[%clk 00:16:06]} {[%emt 00:00:03]} 36. g3+ {[%clk 00:12:51]} {[%emt
00:00:02]} Kg4 {[%clk 00:16:15]} {[%emt 00:00:02]} 37. Kf1 {[%clk 00:12:54]}
{[%emt 00:00:06]} Kxg3 {[%clk 00:16:23]} {[%emt 00:00:02]} 38. Ke2 {[%clk
00:13:03]} {[%emt 00:00:01]} Ra3 {[%clk 00:16:30]} {[%emt 00:00:03]} 39. Kd2
{[%clk 00:13:12]} {[%emt 00:00:02]} Kf4 {[%clk 00:16:39]} {[%emt 00:00:01]} 40.
Ke2 {[%clk 00:13:20]} {[%emt 00:00:02]} Rb3 {[%clk 00:16:47]} {[%emt 00:00:02]}
41. Kd2 {[%clk 00:13:29]} Ke4 {[%clk 00:16:57]} 42. Kc2 {[%clk 00:13:38]}
{[%emt 00:00:01]} Rh3 {[%clk 00:17:05]} {[%emt 00:00:02]} 43. Kd2 {[%clk
00:13:46]} {[%emt 00:00:01]} Rg3 {[%clk 00:17:13]} {[%emt 00:00:03]} 44. Kc2
{[%clk 00:13:54]} {[%emt 00:00:02]} Kd4 {[%clk 00:17:22]} {[%emt 00:00:01]} 45.
Kb2 {[%clk 00:14:03]} Kc4 {[%clk 00:17:30]} {[%emt 00:00:02]} 46. Ka2 {[%clk
00:14:12]} Kb4 {[%emt 00:00:02]} 47. Kb2 {[%clk 00:14:16]} {[%emt 00:00:04]}
Rg2+ {[%clk 00:17:48]} {[%emt 00:00:02]} 48. Kc1 {[%clk 00:14:24]} {[%emt
00:00:01]} Kc3 {[%clk 00:17:55]} {[%emt 00:00:03]} 49. Kd1 {[%clk 00:14:33]}
Kd3 {[%clk 00:18:05]} 50. Ke1 {[%clk 00:14:42]} {[%emt 00:00:02]} Ke3 {[%clk
00:18:14]} 51. Kf1 {[%clk 00:14:51]} {[%emt 00:00:01]} Ra2 {[%clk 00:18:22]}
{[%emt 00:00:01]} 52. Kg1 {[%clk 00:14:59]} {[%emt 00:00:03]} Kf3 {[%clk
00:18:32]} {[%emt 00:00:01]} 53. Kh1 {[%clk 00:15:06]} {[%emt 00:00:02]} Kg3
{[%clk 00:18:41]} {[%emt 00:00:01]} 54. Kg1 {[%clk 00:15:14]} {[%emt 00:00:02]}
Ra1+ {[%clk 00:18:49]} {[%emt 00:00:01]} 0-1

[Event "Chessity Nationale Pupillendag 2018 - Groep G"]
[Site "Meppel, Netherlands"]
[Date "2018.06.23"]
[Round "3.3"]
[White "Koorevaar, Sarah-Joy"]
[Black "Heukelom, Aurelia"]
[Result "0-1"]
[TimeControl "15 min + 10 sec"]
[WhiteElo "533"]
[BlackElo "703"]

1. e4 {[%clk 00:15:19]} e5 {[%clk 00:15:19]} {[%emt 00:00:01]} 2. Nf3 {[%clk
00:15:27]} {[%emt 00:00:02]} Nc6 {[%clk 00:15:28]} {[%emt 00:00:01]} 3. Bc4
{[%clk 00:15:34]} {[%emt 00:00:03]} Be7 {[%clk 00:15:36]} {[%emt 00:00:03]} 4.
d3 {[%clk 00:15:41]} {[%emt 00:00:03]} Nf6 {[%clk 00:15:41]} {[%emt 00:00:05]}
5. Nc3 {[%clk 00:15:48]} {[%emt 00:00:02]} O-O {[%clk 00:15:49]} {[%emt
00:00:02]} 6. Be3 {[%clk 00:15:55]} {[%emt 00:00:02]} d6 {[%clk 00:15:58]}
{[%emt 00:00:02]} 7. O-O {[%clk 00:16:02]} {[%emt 00:00:04]} Be6 {[%clk
00:16:07]} 8. Bxe6 {[%clk 00:16:07]} {[%emt 00:00:05]} fxe6 {[%clk 00:16:15]}
{[%emt 00:00:02]} 9. Ng5 {[%clk 00:16:03]} {[%emt 00:00:14]} Nd7 {[%clk
00:15:54]} {[%emt 00:00:32]} 10. Nxe6 {[%clk 00:16:10]} {[%emt 00:00:02]} Qc8
{[%clk 00:15:30]} {[%emt 00:00:33]} 11. Nxf8 {[%clk 00:16:18]} {[%emt
00:00:04]} Qxf8 {[%clk 00:15:38]} {[%emt 00:00:01]} 12. Nd5 {[%clk 00:16:17]}
{[%emt 00:00:11]} Rc8 {[%clk 00:15:23]} {[%emt 00:00:24]} 13. Re1 {[%clk
00:15:56]} {[%emt 00:00:33]} Nf6 {[%clk 00:15:17]} {[%emt 00:00:15]} 14. Nxe7+
{[%clk 00:15:43]} {[%emt 00:00:24]} Qxe7 {[%clk 00:15:24]} {[%emt 00:00:03]} 15.
Bg5 {[%clk 00:15:50]} {[%emt 00:00:02]} h6 {[%clk 00:15:32]} {[%emt 00:00:02]}
16. Bxf6 {[%clk 00:15:55]} {[%emt 00:00:05]} Qxf6 {[%clk 00:15:40]} {[%emt
00:00:02]} 17. Re3 {[%clk 00:15:58]} {[%emt 00:00:07]} Nd4 {[%clk 00:15:44]}
{[%emt 00:00:06]} 18. c3 {[%clk 00:16:01]} {[%emt 00:00:07]} Ne6 {[%clk
00:15:40]} {[%emt 00:00:13]} 19. Rf3 {[%clk 00:16:10]} {[%emt 00:00:02]} Qe7
{[%clk 00:15:34]} {[%emt 00:00:16]} 20. Qb3 {[%clk 00:16:01]} {[%emt 00:00:19]}
Rf8 {[%clk 00:15:40]} {[%emt 00:00:05]} 21. Rxf8+ {[%clk 00:16:04]} {[%emt
00:00:07]} Kxf8 {[%clk 00:15:42]} {[%emt 00:00:09]} 22. Qxb7 {[%clk 00:15:57]}
{[%emt 00:00:16]} Qg5 {[%clk 00:15:36]} {[%emt 00:00:12]} 23. Qc8+ {[%clk
00:16:05]} {[%emt 00:00:06]} Kf7 {[%clk 00:15:44]} {[%emt 00:00:02]} 24. Re1
{[%clk 00:16:10]} {[%emt 00:00:05]} Nf4 {[%clk 00:15:47]} {[%emt 00:00:05]} 25.
g3 {[%clk 00:16:04]} {[%emt 00:00:16]} h5 {[%clk 00:15:31]} {[%emt 00:00:27]}
26. Qxc7+ {[%clk 00:16:11]} {[%emt 00:00:04]} Kg6 {[%clk 00:15:37]} {[%emt
00:00:04]} 27. Qxd6+ {[%clk 00:16:15]} {[%emt 00:00:06]} Kh7 {[%clk 00:15:44]}
{[%emt 00:00:02]} 28. c4 {[%clk 00:16:13]} {[%emt 00:00:13]} h4 {[%clk
00:15:52]} {[%emt 00:00:01]} 29. g4 {[%clk 00:15:55]} {[%emt 00:00:42]} Qxg4+
{[%clk 00:15:53]} {[%emt 00:00:15]} 30. Kf1 {[%clk 00:15:48]} {[%emt 00:00:17]}
Qg2# {[%clk 00:16:01]} {[%emt 00:00:02]} 0-1

[Event "Chessity Nationale Pupillendag 2018 - Groep G"]
[Site "Meppel, Netherlands"]
[Date "2018.06.23"]
[Round "3.4"]
[White "Van Rijn, Vincent"]
[Black "Koster, Benjamin"]
[Result "1-0"]
[TimeControl "15 min + 10 sec"]
[WhiteElo "699"]
[BlackElo "417"]

1. d4 {[%emt 00:00:04]} d5 {[%clk 00:15:18]} 2. c4 {[%emt 00:00:07]} Nc6 {[%clk
00:15:22]} 3. Nc3 {[%emt 00:00:19]} Bf5 {[%clk 00:15:13]} {[%emt 00:00:07]} 4.
cxd5 {[%clk 00:15:39]} {[%emt 00:00:04]} Nb4 {[%clk 00:15:12]} {[%emt
00:00:09]} 5. Qa4+ {[%emt 00:00:16]} Nc6 {[%clk 00:15:07]} {[%emt 00:00:01]} 6.
dxc6 {[%emt 00:00:14]} bxc6 {[%clk 00:15:01]} {[%emt 00:00:02]} 7. Qxc6+ {[%clk
00:16:03]} {[%emt 00:00:06]} Bd7 {[%emt 00:00:16]} 8. Qd5 {[%emt 00:00:06]} c6
{[%emt 00:00:18]} 9. Qf3 {[%clk 00:15:52]} {[%emt 00:00:05]} h5 {[%clk
00:15:09]} {[%emt 00:00:05]} 10. e4 {[%clk 00:16:00]} {[%emt 00:00:04]} Bg4
{[%clk 00:15:18]} {[%emt 00:00:01]} 11. Qf4 {[%clk 00:16:02]} {[%emt 00:00:08]}
Qxd4 {[%clk 00:15:16]} {[%emt 00:00:12]} 12. Be3 {[%emt 00:00:07]} Qd7 {[%emt
00:00:31]} 13. Rd1 {[%clk 00:16:02]} {[%emt 00:00:04]} Bxd1 {[%clk 00:15:03]}
{[%emt 00:00:11]} 14. Nxd1 {[%clk 00:16:10]} {[%emt 00:00:02]} Rd8 {[%clk
00:15:11]} 15. Nc3 {[%clk 00:16:17]} {[%emt 00:00:05]} e6 {[%clk 00:15:09]}
{[%emt 00:00:12]} 16. Be2 {[%clk 00:16:08]} {[%emt 00:00:20]} Bd6 {[%clk
00:15:10]} {[%emt 00:00:09]} 17. Qf3 {[%clk 00:16:11]} {[%emt 00:00:07]} g5
{[%clk 00:14:44]} {[%emt 00:00:35]} 18. Bxg5 {[%clk 00:16:08]} {[%emt
00:00:13]} f6 {[%clk 00:14:48]} {[%emt 00:00:06]} 19. Bxf6 {[%clk 00:16:08]}
{[%emt 00:00:10]} Nxf6 20. Qxf6 {[%clk 00:16:18]} Bf4 {[%emt 00:00:24]} 21.
Qxf4 {[%clk 00:16:09]} {[%emt 00:00:11]} Qb7 {[%clk 00:14:24]} {[%emt
00:00:26]} 22. b3 {[%clk 00:15:58]} {[%emt 00:00:30]} Rf8 {[%clk 00:14:26]}
{[%emt 00:00:03]} 23. Qe5 {[%clk 00:16:03]} {[%emt 00:00:09]} Qe7 {[%clk
00:14:29]} {[%emt 00:00:07]} 24. Bxh5+ {[%clk 00:16:04]} {[%emt 00:00:10]} Kd7
{[%clk 00:14:31]} {[%emt 00:00:07]} 25. Qd4+ {[%clk 00:16:03]} {[%emt
00:00:11]} Kc8 {[%clk 00:14:34]} {[%emt 00:00:06]} 26. Qa4 {[%clk 00:15:43]}
{[%emt 00:00:31]} Qd6 {[%clk 00:14:33]} {[%emt 00:00:09]} 27. Qa6+ {[%clk
00:15:48]} {[%emt 00:00:07]} Kb8 {[%clk 00:14:33]} {[%emt 00:00:04]} 28. Nf3
{[%clk 00:15:34]} {[%emt 00:00:50]} Qd3 {[%emt 00:00:29]} 29. e5 Qd7 {[%clk
00:13:57]} {[%emt 00:00:15]} 30. O-O {[%clk 00:15:28]} {[%emt 00:00:18]} Rh8
{[%clk 00:14:01]} {[%emt 00:00:20]} 31. Bg4 {[%clk 00:15:30]} {[%emt 00:00:14]}
Rdf8 {[%clk 00:14:05]} {[%emt 00:00:06]} 32. Rd1 {[%clk 00:15:27]} {[%emt
00:00:13]} Qc7 {[%clk 00:13:56]} {[%emt 00:00:17]} 33. Bxe6 {[%clk 00:15:19]}
{[%emt 00:00:20]} Rxf3 {[%clk 00:13:19]} {[%emt 00:00:46]} 34. Rd7 {[%clk
00:15:09]} {[%emt 00:00:21]} Qb7 {[%clk 00:12:48]} {[%emt 00:00:41]} 35. Qxb7#
{[%emt 00:00:05]} 1-0